fUST/lending_fUST_20240213
["ID","MTS","AMOUNT","RATE_DAILY","PERIOD"]
[313912502,1707816549289,-7989.76732382,0.00021239,2]
[313912503,1707816549309,-273.45700158,0.0002124,2]
[313912504,1707816549329,-2608.46910477,0.0002124,2]
[313912505,1707816549348,-20950.86004502,0.0002124,2]
[313912506,1707816549368,-381.73015188,0.00021241,3]
[313912507,1707816549388,-3552.45362534,0.00021338,2]
[313912508,1707816549409,-454.78953434,0.00021339,2]
[313912509,1707816549430,-155.54015347,0.00021339,2]
[313912510,1707816549449,-154.84515485,0.0002134,2]
[313912511,1707816549469,-690.59003309,0.0002134,2]
[313912512,1707816549488,-1435.25522947,0.0002134,2]
[313912513,1707816549507,-1967.70345813,0.00021342,2]
[313912514,1707816549527,-164.22477025,0.00021354,2]
[313912515,1707816549546,-3000.0,0.00021465,2]
[313912516,1707816549568,-1165.646886,0.00021562,2]
[313912517,1707816549587,-295.1257161,0.00022,4]
[313912518,1707816549621,-200.0,0.00023606,7]
[313912519,1707816549643,-280.0,0.00025967,7]
[313912520,1707816549663,-19571.5354211,0.00026139,2]
[313912521,1707816549685,-164.22477025,0.00026248,2]
[313912522,1707816549703,-3071.79272396,0.00026348,2]
[313912528,1707816561089,-500.0,0.00021235,2]
[313912529,1707816563096,-190.59003309,0.00021235,2]
[313912530,1707816563118,-75.38044994,0.00026348,2]
[313912531,1707816563140,-385.96083541,0.00028563,15]
[313912532,1707816571105,-5.03916459,0.00028563,15]
[313912552,1707816632362,-1141.49759267,0.00030643,2]
[313912556,1707816632414,-97.19442933,0.00030643,2]
[313912557,1707816632424,-603.73659542,0.00030703,2]
[313912581,1707816638484,-1128.60340288,0.00030703,2]
[313912582,1707816638496,-324.29474882,0.00031626,2]
[313912583,1707816638505,-209.24314963,0.0003163,5]
[313912584,1707816638515,-7735.4996633,0.00031725,4]
[313912585,1707816638524,-309.78315489,0.00031726,4]
[313912586,1707816638533,-22994.0393275,0.00031726,4]
[313912587,1707816638542,-771.14677658,0.0003173,4]
[313912588,1707816638552,-150.83408251,0.00032606,7]
[313912589,1707816638561,-324.29474878,0.00032833,2]
[313912590,1707816638571,-16592.7729,0.00033039,7]
[313912591,1707816638580,-150.83408251,0.00033272,4]
[313912592,1707816638589,-367.40863936,0.0003395,4]
[313912593,1707816638600,-150.83408251,0.00033951,2]
[313912594,1707816638610,-324.29474878,0.0003404,2]
[313912595,1707816638621,-4772.97032196,0.00034446,4]
[313912596,1707816638633,-321.83922561,0.00034447,4]
[313912597,1707816638642,-10734.81214332,0.00034448,2]
[313912598,1707816638652,-3382.67348603,0.00034449,2]
[313912599,1707816638662,-2002.18764502,0.0003445,2]
[313912600,1707816638671,-2545.46,0.0003455,3]
[313912601,1707816638681,-777.0,0.0003456,2]
[313912602,1707816638690,-200.0,0.00034896,15]
[313912603,1707816638699,-1533.16044773,0.00035,4]
[313912604,1707816638708,-847.02589561,0.00035,2]
[313912605,1707816638719,-154.82968734,0.00035,6]
[313912606,1707816638729,-324.29474878,0.00035246,2]
[313912607,1707816638738,-300.0,0.00035293,3]
[313912608,1707816638747,-455.0,0.00035532,3]
[313912609,1707816638756,-500.0,0.00035616,7]
[313912610,1707816638766,-500.0,0.00035616,14]
[313912611,1707816638775,-500.0,0.00035616,14]
[313912612,1707816638785,-500.0,0.00035616,14]
[313912613,1707816638796,-500.0,0.00035616,14]
[313912614,1707816638805,-500.0,0.00035616,14]
[313912615,1707816638814,-500.0,0.00035616,14]
[313912616,1707816638823,-500.0,0.00035616,14]
[313912617,1707816638832,-500.0,0.00035616,14]
[313912618,1707816638842,-500.0,0.00035616,14]
[313912619,1707816638852,-500.0,0.00035616,14]
[313912620,1707816638862,-500.0,0.00035616,14]
[313912621,1707816638872,-500.0,0.00035616,2]
[313912622,1707816638882,-500.0,0.00035616,2]
[313912623,1707816638893,-500.0,0.00035616,14]
[313912624,1707816638902,-500.0,0.00035616,7]
[313912625,1707816638911,-500.0,0.00035616,7]
[313912626,1707816638920,-500.0,0.00035616,14]
[313912627,1707816638929,-443.82,0.00035616,14]
[313912628,1707816638939,-500.0,0.00035616,14]
[313912629,1707816638948,-500.0,0.00035616,14]
[313912630,1707816638957,-500.0,0.00035616,14]
[313912631,1707816638967,-500.0,0.00035616,14]
[313912632,1707816638977,-500.0,0.00035616,14]
[313912633,1707816638987,-500.0,0.00035616,14]
[313912634,1707816638998,-500.0,0.00035616,7]
[313912635,1707816639007,-500.0,0.00035616,7]
[313912636,1707816639018,-175.26370295,0.00035616,14]
[313912637,1707816639027,-291.46716292,0.00035616,14]
[313912638,1707816639038,-500.0,0.00035616,14]
[313912639,1707816639048,-500.0,0.00035616,14]
[313912640,1707816639058,-500.0,0.00035616,14]
[313912641,1707816639067,-500.0,0.00035616,14]
[313912642,1707816639077,-500.0,0.00035616,14]
[313912643,1707816639085,-500.0,0.00035616,14]
[313912644,1707816639095,-500.0,0.00035616,14]
[313912645,1707816639104,-500.0,0.00035616,14]
[313912646,1707816639114,-500.0,0.00035616,14]
[313912647,1707816639124,-461.69581788,0.00035616,14]
[313912648,1707816639133,-500.0,0.00035616,14]
[313912649,1707816639141,-500.0,0.00035616,14]
[313912650,1707816639151,-500.0,0.00035616,14]
[313912651,1707816639161,-500.0,0.00035616,14]
[313912652,1707816639171,-500.0,0.00035616,14]
[313912653,1707816639181,-308.61183286,0.00035616,14]
[313912654,1707816639190,-500.0,0.00035616,14]
[313912655,1707816639199,-500.0,0.00035616,14]
[313912656,1707816639208,-500.0,0.00035616,14]
[313912657,1707816639218,-500.0,0.00035616,14]
[313912658,1707816639231,-500.0,0.00035616,14]
[313912659,1707816639241,-500.0,0.00035616,14]
[313912660,1707816639251,-638.78,0.00035616,14]
[313912661,1707816639260,-500.0,0.00035616,14]
[313912662,1707816639271,-577.05374795,0.00035616,14]
[313912663,1707816639281,-500.0,0.00035616,14]
[313912664,1707816639290,-1649.89,0.00035616,14]
[313912665,1707816639299,-500.0,0.00035616,14]
[313912666,1707816639309,-1649.89,0.00035616,14]
[313912667,1707816639318,-500.0,0.00035616,14]
[313912668,1707816639327,-1649.89,0.00035616,14]
[313912669,1707816639337,-500.0,0.00035616,14]
[313912670,1707816639346,-1649.89,0.00035616,14]
[313912671,1707816639354,-500.0,0.00035616,14]
[313912672,1707816639367,-500.0,0.00035616,14]
[313912673,1707816639376,-500.0,0.00035616,14]
[313912674,1707816639385,-1000.0,0.00035616,2]
[313912675,1707816639395,-500.0,0.00035616,14]
[313912676,1707816639404,-500.0,0.00035616,14]
[313912677,1707816639413,-500.0,0.00035616,14]
[313912678,1707816639422,-500.0,0.00035616,14]
[313912679,1707816639432,-500.0,0.00035616,14]
[313912680,1707816639440,-500.0,0.00035616,14]
[313912681,1707816639450,-500.0,0.00035616,14]
[313912682,1707816639459,-500.0,0.00035616,14]
[313912683,1707816639470,-500.0,0.00035616,14]
[313912684,1707816639479,-268.44,0.00035616,14]
[313912685,1707816639488,-500.0,0.00035616,14]
[313912686,1707816639498,-351.82,0.00035616,14]
[313912687,1707816639507,-500.0,0.00035616,14]
[313912688,1707816639516,-500.0,0.00035616,2]
[313912689,1707816639525,-528.0022967,0.00035616,14]
[313912690,1707816639534,-500.0,0.00035616,14]
[313912691,1707816639544,-500.0,0.00035616,14]
[313912692,1707816639553,-380.32,0.00035616,14]
[313912693,1707816639562,-500.0,0.00035616,14]
[313912694,1707816639571,-500.0,0.00035616,14]
[313912695,1707816639580,-500.0,0.00035616,14]
[313912696,1707816639589,-500.0,0.00035616,14]
[313912697,1707816639598,-582.57710656,0.00035616,14]
[313912698,1707816639607,-500.0,0.00035616,14]
[313912699,1707816639616,-500.0,0.00035616,14]
[313912700,1707816639627,-500.0,0.00035616,14]
[313912701,1707816639637,-500.0,0.00035616,14]
[313912702,1707816639648,-500.0,0.00035616,14]
[313912703,1707816639657,-500.0,0.00035616,14]
[313912704,1707816639666,-500.0,0.00035616,14]
[313912705,1707816639675,-153.06,0.00035616,14]
[313912706,1707816639684,-500.0,0.00035616,14]
[313912707,1707816639694,-631.17,0.00035616,14]
[313912708,1707816639705,-500.0,0.00035616,14]
[313912709,1707816639714,-216.86761908,0.00035616,14]
[313912710,1707816639724,-500.0,0.00035616,14]
[313912711,1707816639733,-500.0,0.00035616,14]
[313912712,1707816639743,-500.0,0.00035616,14]
[313912713,1707816639753,-500.0,0.00035616,14]
[313912714,1707816639764,-500.0,0.00035616,14]
[313912715,1707816639773,-500.0,0.00035616,14]
[313912716,1707816639782,-500.0,0.00035616,14]
[313912717,1707816639794,-500.0,0.00035616,14]
[313912718,1707816639805,-500.0,0.00035616,14]
[313912719,1707816639814,-500.0,0.00035616,14]
[313912720,1707816639823,-464.21,0.00035616,14]
[313912721,1707816639832,-500.0,0.00035616,14]
[313912722,1707816639841,-500.0,0.00035616,14]
[313912723,1707816639850,-500.0,0.00035616,14]
[313912724,1707816639859,-500.0,0.00035616,14]
[313912725,1707816639868,-432.47,0.00035616,14]
[313912726,1707816639879,-500.0,0.00035616,14]
[313912727,1707816639890,-500.0,0.00035616,14]
[313912728,1707816639901,-500.0,0.00035616,14]
[313912729,1707816639910,-500.0,0.00035616,14]
[313912730,1707816639919,-500.0,0.00035616,14]
[313912731,1707816639929,-500.0,0.00035616,14]
[313912732,1707816639940,-489.79555172,0.00035616,14]
[313912733,1707816639950,-500.0,0.00035616,14]
[313912734,1707816639959,-500.0,0.00035616,14]
[313912735,1707816639969,-541.36,0.00035616,14]
[313912736,1707816639978,-500.0,0.00035616,14]
[313912737,1707816639987,-500.0,0.00035616,14]
[313912738,1707816639996,-500.0,0.00035616,14]
[313912739,1707816640006,-631.18458791,0.00035616,14]
[313912740,1707816640015,-500.0,0.00035616,14]
[313912741,1707816640025,-500.0,0.00035616,14]
[313912742,1707816640035,-500.0,0.00035616,14]
[313912743,1707816640044,-500.0,0.00035616,14]
[313912744,1707816640053,-500.0,0.00035616,14]
[313912745,1707816640063,-500.0,0.00035616,14]
[313912746,1707816640072,-500.0,0.00035616,14]
[313912747,1707816640082,-500.0,0.00035616,14]
[313912748,1707816640091,-500.0,0.00035616,14]
[313912749,1707816640101,-500.0,0.00035616,14]
[313912750,1707816640110,-271.50812814,0.00035616,14]
[313912751,1707816640119,-500.0,0.00035616,14]
[313912752,1707816640129,-773.47,0.00035616,14]
[313912753,1707816640138,-773.47,0.00035616,14]
[313912754,1707816640147,-773.47,0.00035616,14]
[313912755,1707816640156,-773.47,0.00035616,14]
[313912756,1707816640166,-773.47,0.00035616,14]
[313912757,1707816640175,-500.0,0.00035616,14]
[313912758,1707816640184,-500.0,0.00035616,14]
[313912759,1707816640194,-500.0,0.00035616,14]
[313912760,1707816640203,-500.0,0.00035616,14]
[313912761,1707816640213,-500.0,0.00035616,14]
[313912762,1707816640223,-338.13505655,0.00035698,4]
[313912763,1707816640236,-287.37623972,0.00035698,4]
[313912764,1707816640246,-1018.62751782,0.00035698,4]
[313912765,1707816640257,-11406.09850282,0.00035698,4]
[313912766,1707816640266,-158.45526564,0.00035698,4]
[313912767,1707816640276,-564.35503026,0.00035698,4]
[313912768,1707816640286,-2607.17180767,0.00035698,4]
[313912769,1707816640296,-155.94490193,0.00035698,4]
[313912770,1707816640306,-578.53150218,0.00035698,4]
[313912771,1707816640315,-353.16253562,0.00035698,4]
[313912772,1707816640325,-265.51932979,0.00035698,4]
[313912773,1707816640335,-1434.08302531,0.00035698,4]
[313912774,1707816640344,-155.44996363,0.00035698,4]
[313912775,1707816640353,-156.23424589,0.00035698,4]
[313912776,1707816640362,-695.15673155,0.00035698,4]
[313912777,1707816640371,-500.0,0.00035699,14]
[313912778,1707816640390,-500.0,0.00035699,14]
[313912779,1707816640400,-500.0,0.00035699,14]
[313912780,1707816640409,-500.0,0.00035699,14]
[313912781,1707816640419,-500.0,0.00035699,14]
[313912782,1707816640428,-500.0,0.00035699,14]
[313912783,1707816640437,-500.0,0.00035699,14]
[313912784,1707816640447,-297827.47469368,0.000357,30]
[313912786,1707816640463,-349.31734433,0.000357,30]
[313912787,1707816640472,-155.26373299,0.00035817,4]
[313912788,1707816640483,-319.0,0.0003589,2]
[313912789,1707816640493,-2187.78345789,0.00035989,2]
[313912790,1707816640502,-155.0,0.00036,2]
[313912791,1707816640512,-285.660061,0.00036,30]
[313912792,1707816640523,-157.0,0.00036,2]
[313912793,1707816640532,-319.0,0.00036,2]
[313912794,1707816640541,-153.0,0.00036,2]
[313912795,1707816640550,-319.0,0.00036164,2]
[313912796,1707816640562,-1649.89,0.00036215,14]
[313912798,1707816640570,-500.0,0.00036215,14]
[313912799,1707816640579,-500.0,0.00036215,14]
[313912800,1707816640588,-773.47,0.00036215,14]
[313912801,1707816640597,-1255.64845052,0.00036216,4]
[313912802,1707816640792,-6005.84333811,0.00036216,4]
[313912803,1707816640845,-1997.41647148,0.00036216,4]
[313912830,1707816641741,-2330.55360801,0.00036216,4]
[313912832,1707816641753,-7559.27909798,0.00036216,4]
[313912834,1707816641762,-1000.0,0.00036382,2]
[313912836,1707816641771,-156.00429501,0.00036399,4]
[313912838,1707816641780,-319.0,0.00036438,2]
[313912840,1707816641790,-250.0,0.0003645,5]
[313912842,1707816641799,-500.0,0.0003645,14]
[313912844,1707816641808,-500.0,0.0003645,14]
[313912846,1707816641818,-257.52,0.0003645,14]
[313912848,1707816641827,-1649.89,0.0003645,14]
[313912850,1707816641836,-1649.89,0.0003645,14]
[313912852,1707816641845,-1649.89,0.0003645,14]
[313912854,1707816641854,-500.0,0.0003645,14]
[313912856,1707816641863,-500.0,0.0003645,14]
[313912858,1707816641872,-500.0,0.0003645,14]
[313912860,1707816641881,-500.0,0.0003645,14]
[313912862,1707816641890,-188.50703591,0.0003645,14]
[313912864,1707816641899,-500.0,0.0003645,14]
[313912866,1707816641908,-500.0,0.0003645,14]
[313912868,1707816641917,-404.93,0.0003645,14]
[313912869,1707816641926,-500.0,0.0003645,14]
[313912872,1707816641936,-532.85926047,0.0003645,14]
[313912874,1707816641945,-500.0,0.0003645,14]
[313912876,1707816641954,-500.0,0.0003645,14]
[313912877,1707816641963,-500.0,0.0003645,14]
[313912880,1707816641973,-500.0,0.0003645,14]
[313912881,1707816641982,-500.0,0.0003645,14]
[313912883,1707816641991,-500.0,0.0003645,14]
[313912885,1707816642000,-284.9,0.0003645,14]
[313912888,1707816642010,-500.0,0.0003645,14]
[313912890,1707816642020,-500.0,0.0003645,14]
[313912892,1707816642030,-500.0,0.0003645,14]
[313912894,1707816642040,-773.47,0.0003645,14]
[313912895,1707816642049,-773.47,0.0003645,14]
[313912897,1707816642059,-773.47,0.0003645,14]
[313912899,1707816642068,-22772.67063186,0.0003645,2]
[313912900,1707816642081,-1516.03500369,0.0003645,2]
[313912901,1707816642293,-73362.80028275,0.0003645,2]
[313912902,1707816642305,-324.29474878,0.00036453,2]
[313912903,1707816642315,-1000.0,0.0003648,2]
[313912904,1707816642326,-1000.0,0.00036496,2]
[313912905,1707816642335,-1000.0,0.00036525,2]
[313912906,1707816642344,-718.5549009,0.00036546,4]
[313912907,1707816642354,-1649.89,0.00036547,14]
[313912908,1707816642363,-1649.89,0.00036547,14]
[313912909,1707816642373,-500.0,0.00036547,14]
[313912910,1707816642382,-500.0,0.00036547,14]
[313912911,1707816642392,-500.0,0.00036547,14]
[313912912,1707816642402,-500.0,0.00036547,14]
[313912913,1707816642412,-500.0,0.00036547,14]
[313912914,1707816642422,-500.0,0.00036547,14]
[313912915,1707816642432,-773.47,0.00036547,14]
[313912916,1707816642441,-773.47,0.00036547,14]
[313912917,1707816642450,-1587.73592966,0.00036547,4]
[313912918,1707816642460,-47726.63560689,0.00036547,4]
[313912919,1707816642469,-10447.40146031,0.00036547,4]
[313912920,1707816642481,-1912.86942624,0.00036547,4]
[313912942,1707816643540,-796.57778139,0.00035245,2]
[313912951,1707816643577,-50.44811422,0.00035245,2]
[313912953,1707816643586,-1790.72565632,0.0003644,3]
[313913060,1707816646530,-330.49434368,0.0003644,3]
[313913061,1707816646540,-1706.866108,0.00036547,4]
[313913062,1707816646551,-1923.3261282,0.00036547,4]
[313913063,1707816646561,-773.47,0.00036548,14]
[313913064,1707816646571,-548.46510241,0.00036548,4]
[313913065,1707816646581,-159.64501728,0.00036548,4]
[313913066,1707816646591,-410.72191203,0.00036548,4]
[313913067,1707816646602,-9171.72569085,0.00036548,4]
[313913068,1707816646615,-10757.47552808,0.00036548,4]
[313913069,1707816646625,-212.63194922,0.00036548,4]
[313913070,1707816646635,-179.556332,0.00036548,4]
[313913071,1707816646645,-167.18562175,0.00036548,4]
[313913072,1707816646655,-500.0,0.00036548,4]
[313913073,1707816646664,-323.84933438,0.00036548,4]
[313913074,1707816646673,-221.47993987,0.00036548,4]
[313913075,1707816646683,-301.56613427,0.00036548,4]
[313913076,1707816646693,-254.62525398,0.00036548,4]
[313913077,1707816646702,-182.12649486,0.00036548,4]
[313913078,1707816646711,-155.34740237,0.00036548,4]
[313913079,1707816646721,-906.16625216,0.00036548,4]
[313913080,1707816646730,-15329.65046487,0.00036549,30]
[313913081,1707816646740,-1649.89,0.00036549,14]
[313913082,1707816646749,-500.0,0.00036549,14]
[313913083,1707816646758,-500.0,0.00036549,14]
[313913084,1707816646771,-773.47,0.00036549,14]
[313913085,1707816646781,-773.47,0.00036549,14]
[313913086,1707816646790,-773.47,0.00036549,14]
[313913087,1707816646800,-773.47,0.00036549,14]
[313913088,1707816646809,-773.47,0.00036549,14]
[313913089,1707816646820,-773.47,0.00036549,14]
[313913090,1707816646829,-773.47,0.00036549,14]
[313913091,1707816646839,-428.13713969,0.0003655,2]
[313913092,1707816646848,-403.27861282,0.0003655,4]
[313913093,1707816646857,-240.26245834,0.0003655,4]
[313913094,1707816646867,-150.5,0.00036554,35]
[313913095,1707816646875,-233.0,0.00036554,35]
[313913096,1707816646886,-150.5,0.00036554,35]
[313913097,1707816646894,-150.5,0.00036554,35]
[313913098,1707816646904,-150.5,0.00036554,35]
[313913099,1707816646913,-233.0,0.00036554,35]
[313913100,1707816646922,-150.5,0.00036554,35]
[313913101,1707816646941,-217.96,0.00036554,35]
[313913102,1707816646951,-221.05,0.00036554,35]
[313913103,1707816646962,-150.5,0.00036554,35]
[313913104,1707816646970,-150.5,0.00036564,35]
[313913105,1707816646981,-233.0,0.00036564,35]
[313913106,1707816646992,-150.5,0.00036564,35]
[313913107,1707816647003,-150.5,0.00036564,35]
[313913108,1707816647013,-150.5,0.00036564,35]
[313913109,1707816647026,-150.5,0.00036564,35]
[313913110,1707816647036,-233.0,0.00036564,35]
[313913111,1707816647047,-150.5,0.00036564,35]
[313913112,1707816647056,-150.5,0.00036564,35]
[313913113,1707816647066,-233.0,0.00036564,35]
[313913114,1707816647075,-237.0,0.00036564,35]
[313913115,1707816647085,-150.5,0.00036564,35]
[313913116,1707816647094,-236.46,0.00036564,35]
[313913117,1707816647104,-150.5,0.00036574,35]
[313913118,1707816647113,-233.0,0.00036574,35]
[313913119,1707816647123,-150.5,0.00036574,35]
[313913120,1707816647133,-150.5,0.00036574,35]
[313913121,1707816647143,-150.5,0.00036574,35]
[313913122,1707816647153,-150.5,0.00036574,35]
[313913123,1707816647162,-233.0,0.00036574,35]
[313913124,1707816647172,-295.47,0.00036574,35]
[313913125,1707816647182,-150.5,0.00036574,35]
[313913126,1707816647193,-150.5,0.00036574,35]
[313913127,1707816647204,-233.0,0.00036574,35]
[313913128,1707816647213,-177.0,0.00036574,35]
[313913129,1707816647225,-233.0,0.00036574,35]
[313913130,1707816647237,-150.5,0.00036574,35]
[313913131,1707816647247,-150.5,0.00036574,35]
[313913132,1707816647258,-500.0,0.00036575,14]
[313913133,1707816647271,-430.0228512,0.00036575,4]
[313913134,1707816647281,-651.93131844,0.00036582,4]
[313913135,1707816647290,-225.3408234,0.00036582,2]
[313913136,1707816647300,-154.90705577,0.00036582,4]
[313913137,1707816647310,-154.90705577,0.00036582,4]
[313913138,1707816647321,-154.90705577,0.00036582,4]
[313913139,1707816647331,-481.52509604,0.00036582,4]
[313913140,1707816647341,-1746.80219385,0.00036582,4]
[313913141,1707816647350,-155.11635091,0.00036582,4]
[313913142,1707816647360,-154.9703223,0.00036582,4]
[313913143,1707816647370,-155.09676156,0.00036582,4]
[313913144,1707816647380,-646.79208835,0.00036582,4]
[313913145,1707816647389,-261.22503123,0.00036582,4]
[313913146,1707816647399,-1961.94163712,0.00036582,4]
[313913147,1707816647408,-155.27640177,0.00036582,4]
[313913148,1707816647418,-1298.14280611,0.00036582,4]
[313913149,1707816647428,-1948.38142312,0.00036582,4]
[313913150,1707816647438,-1649.89,0.00036582,14]
[313913151,1707816647447,-773.47,0.00036582,14]
[313913152,1707816647458,-773.47,0.00036582,14]
[313913153,1707816647468,-773.47,0.00036582,14]
[313913154,1707816647477,-773.47,0.00036582,14]
[313913155,1707816647487,-773.70367108,0.00036582,14]
[313913156,1707816647497,-170.16347119,0.00036583,4]
[313913157,1707816647508,-500.0,0.00036583,14]
[313913158,1707816647520,-500.0,0.00036583,14]
[313913159,1707816647529,-500.0,0.00036583,14]
[313913160,1707816647538,-500.0,0.00036583,14]
[313913161,1707816647548,-500.0,0.00036583,14]
[313913162,1707816647557,-500.0,0.00036583,14]
[313913163,1707816647567,-500.0,0.00036583,14]
[313913164,1707816647576,-500.0,0.00036583,14]
[313913165,1707816647586,-500.0,0.00036583,14]
[313913166,1707816647595,-500.0,0.00036583,14]
[313913167,1707816647604,-500.0,0.00036583,14]
[313913168,1707816647613,-304.53,0.00036583,14]
[313913169,1707816647622,-500.0,0.00036583,14]
[313913170,1707816647631,-500.0,0.00036583,14]
[313913171,1707816647641,-500.0,0.00036583,14]
[313913172,1707816647651,-500.0,0.00036583,14]
[313913173,1707816647661,-500.0,0.00036583,14]
[313913174,1707816647671,-500.0,0.00036583,14]
[313913175,1707816647681,-500.0,0.00036583,14]
[313913176,1707816647690,-500.0,0.00036583,14]
[313913177,1707816647700,-500.0,0.00036583,14]
[313913178,1707816647710,-587.3,0.00036583,14]
[313913179,1707816647719,-3568.48349718,0.00036585,120]
[313913180,1707816647729,-500.0,0.00036591,3]
[313913181,1707816647739,-154.87609912,0.00036592,4]
[313913182,1707816647854,-821.2943482,0.00036592,4]
[313913183,1707816647865,-154.87609912,0.00036592,4]
[313913184,1707816647875,-500.0,0.00036592,14]
[313913185,1707816647884,-500.0,0.00036592,14]
[313913186,1707816647893,-500.0,0.00036592,14]
[313913187,1707816647902,-500.0,0.00036592,14]
[313913188,1707816647912,-346.79480672,0.00036592,14]
[313913189,1707816647921,-1649.89,0.00036593,14]
[313913190,1707816647930,-1649.89,0.00036593,14]
[313913191,1707816647939,-1649.89,0.00036593,14]
[313913192,1707816647948,-1649.89,0.00036593,14]
[313913193,1707816647957,-1649.89,0.00036593,14]
[313913194,1707816647967,-1649.89,0.00036593,14]
[313913195,1707816647976,-1649.89,0.00036593,14]
[313913196,1707816647986,-1649.89,0.00036593,14]
[313913197,1707816647995,-1649.89,0.00036593,14]
[313913198,1707816648004,-1649.89,0.00036593,14]
[313913199,1707816648013,-1649.89,0.00036593,14]
[313913200,1707816648023,-1649.93045536,0.00036593,14]
[313913201,1707816648033,-151.0,0.00036595,2]
[313913202,1707816648043,-121050.87855456,0.00036679,30]
[313913203,1707816659634,145.46083541,0.00028563,7]
[313913264,1707817544115,-2608.46910477,0.00026123,2]
[313913265,1707817544135,-647.081196,0.00026124,2]
[313913266,1707817544156,-273.45700158,0.00026125,2]
[313913267,1707817544175,-20950.86004502,0.00026138,2]
[313913268,1707817544195,-10553.05211696,0.00026139,2]
[313913270,1707817696971,984.4796431,0.00036,120]
[313913271,1707817696991,1386.16482155,0.00036,120]
[313913272,1707817697010,301.0,0.00036,120]
[313913273,1707817697029,301.0,0.00036,120]
[313913274,1707817697048,227.35553535,0.00036,120]
[313913280,1707817756109,-3000.0,0.00026139,2]
[313913281,1707817756132,-14265.2924966,0.00026139,2]
[313913282,1707817756153,-284.35171597,0.00026139,2]
[313913283,1707817756175,-1010.760771,0.00028222,2]
[313913284,1707817756197,-200.0,0.0002875,15]
[313913308,1707817832634,-539.23433,0.00030997,4]
[313913309,1707817832645,-3329.73898755,0.00030998,2]
[313913331,1707817840712,-1686.61987331,0.00030998,2]
[313913332,1707817840724,-3780.67016296,0.00030998,2]
[313913333,1707817840734,-1586.0,0.00031,3]
[313913334,1707817840743,-200.0,0.00034099,15]
[313913335,1707817840752,-3000.0,0.00034261,2]
[313913336,1707817840761,-777.0,0.0003456,2]
[313913337,1707817840771,-1388.50072136,0.00034579,2]
[313913338,1707817840781,-1533.16044773,0.00035,4]
[313913339,1707817840790,-592.91812692,0.00035,2]
[313913340,1707817840809,-622.59257333,0.00035616,14]
[313913341,1707817840821,-500.0,0.00035616,14]
[313913342,1707817840830,-496.66696298,0.00035616,14]
[313913343,1707817840839,-500.0,0.00035616,7]
[313913344,1707817840849,-500.0,0.00035616,7]
[313913345,1707817840858,-500.0,0.00035616,7]
[313913346,1707817840868,-348.79326323,0.00035616,14]
[313913445,1707817841977,-367.40863936,0.00030997,4]
[313913446,1707817841987,-151.20673677,0.00035616,14]
[313913447,1707817841997,-507.0582471,0.00035616,14]
[313913448,1707817842006,-500.0,0.00035616,14]
[313913449,1707817842015,-500.0,0.00035616,14]
[313913450,1707817842024,-500.0,0.00035616,14]
[313913451,1707817842034,-500.0,0.00035616,14]
[313913452,1707817842043,-502.52019271,0.00035616,14]
[313913453,1707817842053,-500.0,0.00035616,14]
[313913454,1707817842062,-298.26227829,0.00035616,2]
[313913455,1707817842072,-500.0,0.00035616,14]
[313913456,1707817842081,-500.0,0.00035616,14]
[313913457,1707817842090,-500.0,0.00035616,14]